[Event "*** SCC Grand Prix: Titled Tuesday Blitz"]
[Site "Chess.com"]
[Date "2020.08.04"]
[Round "4"]
[White "GianmarcoVaR"]
[Black "Shushik"]
[Result "1-0"]
[WhiteElo "2467"]
[BlackElo "2287"]
[TimeControl "180+1"]
[EndTime "14:24:12 PDT"]
[Termination "GianmarcoVaR won by checkmate"]

1. d4 {[%clk 0:02:52.5]} 1... d5 {[%clk 0:03:00]} 2. Nf3 {[%clk 0:02:47.8]} 2...
f6 {[%clk 0:03:00.1]} 3. Bf4 {[%clk 0:02:46.5]} 3... c5 {[%clk 0:02:56.1]} 4. e3
{[%clk 0:02:43.6]} 4... Nc6 {[%clk 0:02:55.2]} 5. c3 {[%clk 0:02:36]} 5... Bg4
{[%clk 0:02:50.8]} 6. Nbd2 {[%clk 0:02:36]} 6... e5 {[%clk 0:02:40.5]} 7. dxe5
{[%clk 0:02:11.6]} 7... fxe5 {[%clk 0:02:39.6]} 8. Bg5 {[%clk 0:02:12.2]} 8...
Be7 {[%clk 0:02:26]} 9. Bxe7 {[%clk 0:02:11.5]} 9... Ngxe7 {[%clk 0:02:25.1]}
10. e4 {[%clk 0:02:11.8]} 10... d4 {[%clk 0:02:22.4]} 11. Bc4 {[%clk 0:02:10.4]}
11... Qd7 {[%clk 0:02:15.4]} 12. Qa4 {[%clk 0:01:18.3]} 12... a6 {[%clk
0:01:52.8]} 13. h3 {[%clk 0:00:32.3]} 13... Be6 {[%clk 0:01:48.9]} 14. O-O
{[%clk 0:00:20.8]} 14... O-O {[%clk 0:01:45.2]} 15. cxd4 {[%clk 0:00:16.2]}
15... exd4 {[%clk 0:01:32.8]} 16. Qb3 {[%clk 0:00:14.7]} 16... Nd8 {[%clk
0:01:13.8]} 17. Ng5 {[%clk 0:00:10.5]} 17... Bxc4 {[%clk 0:00:54.5]} 18. Nxc4
{[%clk 0:00:10.2]} 18... Qb5 {[%clk 0:00:47.1]} 19. Nb6+ {[%clk 0:00:05.9]}
19... Qxb3 {[%clk 0:00:46.4]} 20. axb3 {[%clk 0:00:06.8]} 20... Rb8 {[%clk
0:00:35.4]} 21. Nd7 {[%clk 0:00:06.3]} 21... Nf7 {[%clk 0:00:28.2]} 22. Nxf8
{[%clk 0:00:06.1]} 22... Nxg5 {[%clk 0:00:23.8]} 23. f4 {[%clk 0:00:05.1]} 23...
Nxe4 {[%clk 0:00:20]} 24. Rfe1 {[%clk 0:00:04.9]} 24... Kxf8 {[%clk 0:00:17.9]}
25. Rxe4 {[%clk 0:00:05.3]} 25... Rd8 {[%clk 0:00:16.6]} 26. Re6 {[%clk
0:00:04.7]} 26... b5 {[%clk 0:00:13.7]} 27. Rexa6 {[%clk 0:00:04.3]} 27... c4
{[%clk 0:00:13.7]} 28. bxc4 {[%clk 0:00:03.7]} 28... bxc4 {[%clk 0:00:13.4]} 29.
Ra8 {[%clk 0:00:04.6]} 29... Ke8 {[%clk 0:00:10.7]} 30. Rxd8+ {[%clk 0:00:04]}
30... Kxd8 {[%clk 0:00:11]} 31. Ra4 {[%clk 0:00:04.9]} 31... d3 {[%clk
0:00:08.7]} 32. Rxc4 {[%clk 0:00:05]} 32... Nf5 {[%clk 0:00:08.6]} 33. Rc3
{[%clk 0:00:04.7]} 33... d2 {[%clk 0:00:08.7]} 34. Rd3+ {[%clk 0:00:05]} 34...
Kc8 {[%clk 0:00:09.5]} 35. Rxd2 {[%clk 0:00:05.5]} 35... Kc7 {[%clk 0:00:09.5]}
36. Kf2 {[%clk 0:00:06]} 36... Kb6 {[%clk 0:00:09.8]} 37. g3 {[%clk 0:00:06.5]}
37... Kb5 {[%clk 0:00:09.6]} 38. Kf3 {[%clk 0:00:07]} 38... Kb4 {[%clk
0:00:09.8]} 39. Rd5 {[%clk 0:00:07]} 39... Ne7 {[%clk 0:00:09]} 40. Rd7 {[%clk
0:00:07.2]} 40... Nf5 {[%clk 0:00:08.8]} 41. g4 {[%clk 0:00:07.2]} 41... Nh4+
{[%clk 0:00:08.6]} 42. Kg3 {[%clk 0:00:07.7]} 42... Ng6 {[%clk 0:00:08.5]} 43.
Rxg7 {[%clk 0:00:08.1]} 43... Kb3 {[%clk 0:00:08.7]} 44. Rxh7 {[%clk 0:00:08.4]}
44... Kxb2 {[%clk 0:00:08.6]} 45. h4 {[%clk 0:00:08.6]} 45... Kc3 {[%clk
0:00:08.3]} 46. h5 {[%clk 0:00:08.9]} 46... Nf8 {[%clk 0:00:06.4]} 47. Rf7
{[%clk 0:00:09.5]} 47... Ne6 {[%clk 0:00:06.6]} 48. h6 {[%clk 0:00:09.7]} 48...
Nd8 {[%clk 0:00:06.2]} 49. Rf6 {[%clk 0:00:09.1]} 49... Kd4 {[%clk 0:00:05.7]}
50. h7 {[%clk 0:00:09.2]} 50... Nf7 {[%clk 0:00:04.8]} 51. Rxf7 {[%clk
0:00:09.2]} 51... Ke3 {[%clk 0:00:05.1]} 52. h8=Q {[%clk 0:00:08.8]} 52... Ke2
{[%clk 0:00:05.4]} 53. Qe8+ {[%clk 0:00:09]} 53... Kf1 {[%clk 0:00:05.2]} 54.
Rd7 {[%clk 0:00:09.6]} 54... Kg1 {[%clk 0:00:04.5]} 55. Qe1# {[%clk 0:00:10.5]}
1-0

[Event "*** SCC Grand Prix: Titled Tuesday Blitz"]
[Site "Chess.com"]
[Date "2020.08.04"]
[Round "4"]
[White "Flopezin"]
[Black "Vladislav_Chizhikov"]
[Result "1-0"]
[WhiteElo "2310"]
[BlackElo "2449"]
[TimeControl "180+1"]
[EndTime "14:24:12 PDT"]
[Termination "Flopezin won on time"]

1. c4 {[%clk 0:03:00.9]} 1... c5 {[%clk 0:02:59.4]} 2. Nf3 {[%clk 0:03:00.7]}
2... Nc6 {[%clk 0:02:59.8]} 3. Nc3 {[%clk 0:03:00]} 3... g6 {[%clk 0:02:59.5]}
4. e3 {[%clk 0:02:55]} 4... Bg7 {[%clk 0:02:57.5]} 5. d4 {[%clk 0:02:55.5]} 5...
cxd4 {[%clk 0:02:52.7]} 6. exd4 {[%clk 0:02:55.3]} 6... d6 {[%clk 0:02:53.1]} 7.
g3 {[%clk 0:02:54]} 7... Nh6 {[%clk 0:02:51.9]} 8. Bg2 {[%clk 0:02:51.5]} 8...
Nf5 {[%clk 0:02:51.5]} 9. d5 {[%clk 0:02:49.9]} 9... Ncd4 {[%clk 0:02:50.9]} 10.
O-O {[%clk 0:02:45.1]} 10... O-O {[%clk 0:02:50]} 11. Nxd4 {[%clk 0:02:42.7]}
11... Nxd4 {[%clk 0:02:50.9]} 12. Be3 {[%clk 0:02:42.9]} 12... Nf5 {[%clk
0:02:50.7]} 13. Bd2 {[%clk 0:02:39.8]} 13... a6 {[%clk 0:02:48.7]} 14. Re1
{[%clk 0:02:38.7]} 14... b5 {[%clk 0:02:46.5]} 15. cxb5 {[%clk 0:02:28.8]} 15...
axb5 {[%clk 0:02:46.4]} 16. a3 {[%clk 0:02:27.3]} 16... Bd7 {[%clk 0:02:33.9]}
17. Bf1 {[%clk 0:02:12]} 17... Rb8 {[%clk 0:02:21]} 18. Re4 {[%clk 0:02:05]}
18... h5 {[%clk 0:02:16.2]} 19. Qc1 {[%clk 0:02:04.5]} 19... Kh7 {[%clk
0:02:12.6]} 20. Rb4 {[%clk 0:02:02.2]} 20... Nd4 {[%clk 0:02:07.9]} 21. Be3
{[%clk 0:01:57.2]} 21... Nf3+ {[%clk 0:01:53.2]} 22. Kg2 {[%clk 0:01:56.8]}
22... Ne5 {[%clk 0:01:53.6]} 23. Bd4 {[%clk 0:01:47.8]} 23... Bg4 {[%clk
0:01:42.9]} 24. Be2 {[%clk 0:01:44.7]} 24... Bf5 {[%clk 0:01:40.4]} 25. f4
{[%clk 0:01:41.9]} 25... Ng4 {[%clk 0:01:19.1]} 26. Bxg7 {[%clk 0:01:38.1]}
26... Kxg7 {[%clk 0:01:20]} 27. Bxg4 {[%clk 0:01:37.9]} 27... hxg4 {[%clk
0:01:15.5]} 28. Qe3 {[%clk 0:01:38.3]} 28... Rh8 {[%clk 0:01:13.6]} 29. Re1
{[%clk 0:01:35.7]} 29... Rb7 {[%clk 0:01:07.1]} 30. Nxb5 {[%clk 0:01:32.5]}
30... Qa8 {[%clk 0:01:02.3]} 31. Qd4+ {[%clk 0:01:20.9]} 31... f6 {[%clk
0:00:51.2]} 32. Nc3 {[%clk 0:01:20]} 32... Rh5 {[%clk 0:00:51.3]} 33. Rxb7
{[%clk 0:01:14.7]} 33... Qxb7 {[%clk 0:00:52.2]} 34. Re2 {[%clk 0:01:10.7]}
34... Kf7 {[%clk 0:00:47.8]} 35. Nd1 {[%clk 0:01:00.9]} 35... Qc8 {[%clk
0:00:37.8]} 36. Ne3 {[%clk 0:01:00.4]} 36... Qh8 {[%clk 0:00:33.6]} 37. Kg1
{[%clk 0:00:55.8]} 37... Bd7 {[%clk 0:00:33.1]} 38. Qe4 {[%clk 0:00:48.3]} 38...
Qd8 {[%clk 0:00:32.1]} 39. Nc2 {[%clk 0:00:44.5]} 39... Bf5 {[%clk 0:00:24.3]}
40. Qd4 {[%clk 0:00:37.2]} 40... Qc8 {[%clk 0:00:18.6]} 41. Qe3 {[%clk
0:00:32.6]} 41... Qc7 {[%clk 0:00:17.3]} 42. Nd4 {[%clk 0:00:31.8]} 42... Rh8
{[%clk 0:00:16]} 43. Nc6 {[%clk 0:00:31.2]} 43... Re8 {[%clk 0:00:15.1]} 44. b4
{[%clk 0:00:29.7]} 44... Qb7 {[%clk 0:00:15]} 45. Qd4 {[%clk 0:00:29.1]} 45...
Qa6 {[%clk 0:00:14.7]} 46. Re3 {[%clk 0:00:29.7]} 46... Qa4 {[%clk 0:00:14]} 47.
Qd2 {[%clk 0:00:29.3]} 47... Qb5 {[%clk 0:00:13]} 48. Qe1 {[%clk 0:00:29.2]}
48... Qb7 {[%clk 0:00:11.9]} 49. Kf2 {[%clk 0:00:26.6]} 49... Kf8 {[%clk
0:00:12.1]} 50. a4 {[%clk 0:00:21.4]} 50... e5 {[%clk 0:00:11.9]} 51. fxe5
{[%clk 0:00:20.5]} 51... dxe5 {[%clk 0:00:10.8]} 52. b5 {[%clk 0:00:20.8]} 52...
Ra8 {[%clk 0:00:09.3]} 53. Qb4+ {[%clk 0:00:20.5]} 53... Kf7 {[%clk 0:00:08.6]}
54. Rc3 {[%clk 0:00:21]} 54... Kg7 {[%clk 0:00:07.6]} 55. d6 {[%clk 0:00:18.1]}
55... Kh6 {[%clk 0:00:07.2]} 56. Ne7 {[%clk 0:00:12.9]} 56... Qh1 {[%clk
0:00:04.1]} 57. Nxf5+ {[%clk 0:00:12.2]} 57... gxf5 {[%clk 0:00:03.1]} 58. d7
{[%clk 0:00:08.6]} 58... Qxh2+ {[%clk 0:00:03.2]} 59. Ke1 {[%clk 0:00:09.1]}
59... Qg1+ {[%clk 0:00:02.7]} 60. Kd2 {[%clk 0:00:09.3]} 60... Rd8 {[%clk
0:00:03.1]} 61. Qe7 {[%clk 0:00:07.8]} 61... Qf2+ {[%clk 0:00:02.6]} 62. Kc1
{[%clk 0:00:08.5]} 62... Qe1+ {[%clk 0:00:02.2]} 63. Kb2 {[%clk 0:00:09]} 63...
Qd2+ {[%clk 0:00:02.3]} 64. Kb3 {[%clk 0:00:09.7]} 1-0

[Event "*** SCC Grand Prix: Titled Tuesday Blitz"]
[Site "Chess.com"]
[Date "2020.08.04"]
[Round "4"]
[White "GalperinPlaton"]
[Black "Jospem"]
[Result "0-1"]
[WhiteElo "2612"]
[BlackElo "2923"]
[TimeControl "180+1"]
[EndTime "14:24:13 PDT"]
[Termination "Jospem won on time"]

1. e4 {[%clk 0:02:51.3]} 1... e5 {[%clk 0:02:59.4]} 2. Nf3 {[%clk 0:02:47]} 2...
Nc6 {[%clk 0:03:00]} 3. Nc3 {[%clk 0:02:47.8]} 3... Nf6 {[%clk 0:03:00.1]} 4. h3
{[%clk 0:02:48.4]} 4... d5 {[%clk 0:02:55.6]} 5. exd5 {[%clk 0:02:49.3]} 5...
Nxd5 {[%clk 0:02:56.5]} 6. Bb5 {[%clk 0:02:50]} 6... Nxc3 {[%clk 0:02:57]} 7.
bxc3 {[%clk 0:02:50.9]} 7... Bd6 {[%clk 0:02:57.3]} 8. d4 {[%clk 0:02:50.5]}
8... exd4 {[%clk 0:02:57.1]} 9. O-O {[%clk 0:02:51.1]} 9... O-O {[%clk
0:02:57.1]} 10. cxd4 {[%clk 0:02:51.4]} 10... Ne7 {[%clk 0:02:37.3]} 11. c4
{[%clk 0:02:49.5]} 11... c6 {[%clk 0:02:37.7]} 12. Ba4 {[%clk 0:02:48.9]} 12...
Bf5 {[%clk 0:02:38.3]} 13. Bc2 {[%clk 0:02:46.3]} 13... Qd7 {[%clk 0:02:38]} 14.
Re1 {[%clk 0:02:32.2]} 14... Rad8 {[%clk 0:02:35]} 15. Bg5 {[%clk 0:02:22.7]}
15... f6 {[%clk 0:02:34.9]} 16. Bd2 {[%clk 0:02:23]} 16... Kh8 {[%clk
0:02:23.2]} 17. Qb1 {[%clk 0:02:22.7]} 17... Bxc2 {[%clk 0:02:22.6]} 18. Qxc2
{[%clk 0:02:23.6]} 18... b5 {[%clk 0:02:19.4]} 19. a4 {[%clk 0:02:09.8]} 19...
bxc4 {[%clk 0:02:16.8]} 20. Qxc4 {[%clk 0:02:10.7]} 20... Nd5 {[%clk 0:02:15.8]}
21. Rac1 {[%clk 0:02:10.1]} 21... Rc8 {[%clk 0:02:14]} 22. a5 {[%clk 0:02:10.7]}
22... Rfd8 {[%clk 0:02:12.8]} 23. Rc2 {[%clk 0:02:09]} 23... Bf8 {[%clk
0:02:12.2]} 24. Rec1 {[%clk 0:02:06.2]} 24... Re8 {[%clk 0:02:06.7]} 25. Qa4
{[%clk 0:01:57]} 25... Re6 {[%clk 0:02:02.6]} 26. Qc4 {[%clk 0:01:34]} 26... g6
{[%clk 0:01:41.2]} 27. Qd3 {[%clk 0:01:32.2]} 27... Kg7 {[%clk 0:01:37.6]} 28.
Qc4 {[%clk 0:01:31.5]} 28... Bd6 {[%clk 0:01:30.3]} 29. Rb1 {[%clk 0:01:31.6]}
29... Rc7 {[%clk 0:01:23]} 30. a6 {[%clk 0:01:29.7]} 30... Re7 {[%clk
0:01:22.5]} 31. Ba5 {[%clk 0:01:27.7]} 31... Rc8 {[%clk 0:01:19.8]} 32. Rb7
{[%clk 0:01:26.5]} 32... Qe8 {[%clk 0:01:15.2]} 33. Rc1 {[%clk 0:01:20.7]} 33...
Qf7 {[%clk 0:00:47]} 34. Rcb1 {[%clk 0:01:16.5]} 34... Bc7 {[%clk 0:00:42.7]}
35. Bxc7 {[%clk 0:00:44.8]} 35... Rcxc7 {[%clk 0:00:43.6]} 36. Rb8 {[%clk
0:00:45.3]} 36... Nf4 {[%clk 0:00:40.6]} 37. Qc5 {[%clk 0:00:45.4]} 37... Qa2
{[%clk 0:00:31.3]} 38. R1b7 {[%clk 0:00:37]} 38... Qa1+ {[%clk 0:00:24.8]} 39.
Kh2 {[%clk 0:00:37]} 39... Qf1 {[%clk 0:00:24.9]} 40. Nh4 {[%clk 0:00:35.4]}
40... Ne2 {[%clk 0:00:18.4]} 41. Nf3 {[%clk 0:00:33.7]} 41... Nf4 {[%clk
0:00:18.9]} 42. Nh4 {[%clk 0:00:33.7]} 42... Ne2 {[%clk 0:00:07.3]} 43. Nf3
{[%clk 0:00:32.5]} 43... Qxf2 {[%clk 0:00:07.1]} 44. Qxe7+ {[%clk 0:00:19.3]}
44... Rxe7 {[%clk 0:00:05.8]} 45. Rxe7+ {[%clk 0:00:20.2]} 45... Kh6 {[%clk
0:00:05.9]} 46. Rb1 {[%clk 0:00:20.6]} 46... Nf4 {[%clk 0:00:05.4]} 47. Rg1
{[%clk 0:00:13.1]} 47... Nh5 {[%clk 0:00:05.7]} 48. Rxa7 {[%clk 0:00:09]} 48...
Qg3+ {[%clk 0:00:06.1]} 49. Kh1 {[%clk 0:00:08]} 49... Qb8 {[%clk 0:00:07]} 50.
Ra1 {[%clk 0:00:02.9]} 50... Qxa7 {[%clk 0:00:06.5]} 51. Nd2 {[%clk 0:00:03.3]}
51... Ng3+ {[%clk 0:00:06.2]} 52. Kh2 {[%clk 0:00:03]} 52... Ne2 {[%clk
0:00:04.7]} 53. Nb3 {[%clk 0:00:02]} 53... Qb8+ {[%clk 0:00:04.2]} 54. Kh1
{[%clk 0:00:01.3]} 54... Ng3+ {[%clk 0:00:03.8]} 0-1

[Event "*** SCC Grand Prix: Titled Tuesday Blitz"]
[Site "Chess.com"]
[Date "2020.08.04"]
[Round "4"]
[White "SilviusTiberius"]
[Black "mapleaff"]
[Result "1/2-1/2"]
[WhiteElo "2504"]
[BlackElo "2372"]
[TimeControl "180+1"]
[EndTime "14:24:30 PDT"]
[Termination "Game drawn by repetition"]

1. e4 {[%clk 0:03:00.9]} 1... e5 {[%clk 0:02:57]} 2. Nf3 {[%clk 0:03:01.1]} 2...
Nc6 {[%clk 0:02:57.1]} 3. Bb5 {[%clk 0:03:01.3]} 3... Nf6 {[%clk 0:02:56.5]} 4.
O-O {[%clk 0:03:01.3]} 4... Nxe4 {[%clk 0:02:56.7]} 5. Re1 {[%clk 0:03:01.7]}
5... Nd6 {[%clk 0:02:56.5]} 6. Nxe5 {[%clk 0:03:02.1]} 6... Be7 {[%clk
0:02:56.5]} 7. Bf1 {[%clk 0:03:01.3]} 7... Nxe5 {[%clk 0:02:56.8]} 8. Rxe5
{[%clk 0:03:00.7]} 8... O-O {[%clk 0:02:57.6]} 9. d4 {[%clk 0:03:01]} 9... Bf6
{[%clk 0:02:57.8]} 10. Re1 {[%clk 0:03:01.4]} 10... Re8 {[%clk 0:02:57.6]} 11.
Bf4 {[%clk 0:02:58.2]} 11... Rxe1 {[%clk 0:02:54.9]} 12. Qxe1 {[%clk 0:02:59.1]}
12... Bxd4 {[%clk 0:02:37.9]} 13. c3 {[%clk 0:02:55.3]} 13... Bf6 {[%clk
0:02:35.6]} 14. Bxd6 {[%clk 0:02:54.9]} 14... cxd6 {[%clk 0:02:34.6]} 15. Qd2
{[%clk 0:02:55.4]} 15... Qc7 {[%clk 0:02:23.2]} 16. Na3 {[%clk 0:02:55.4]} 16...
a6 {[%clk 0:02:07.9]} 17. Re1 {[%clk 0:02:55.4]} 17... Kf8 {[%clk 0:02:03.5]}
18. Nc4 {[%clk 0:02:52.2]} 18... b5 {[%clk 0:01:56.3]} 19. Nxd6 {[%clk
0:02:51.5]} 19... Bb7 {[%clk 0:01:56.4]} 20. Rd1 {[%clk 0:01:58.3]} 20... Bc6
{[%clk 0:01:46.3]} 21. Qf4 {[%clk 0:01:51]} 21... Re8 {[%clk 0:01:31.5]} 22. Bd3
{[%clk 0:01:45.5]} 22... Re6 {[%clk 0:01:19.4]} 23. Bxh7 {[%clk 0:00:28.5]}
23... Qxd6 {[%clk 0:01:17.7]} 24. Qxd6+ {[%clk 0:00:26.2]} 24... Rxd6 {[%clk
0:01:17.5]} 25. Rxd6 {[%clk 0:00:26.7]} 25... Be5 {[%clk 0:01:17.4]} 26. Rxc6
{[%clk 0:00:25.1]} 26... dxc6 {[%clk 0:01:17.1]} 27. Be4 {[%clk 0:00:25.9]}
27... c5 {[%clk 0:01:12.7]} 28. g3 {[%clk 0:00:20]} 28... b4 {[%clk 0:01:06.9]}
29. cxb4 {[%clk 0:00:18.9]} 29... cxb4 {[%clk 0:01:06.5]} 30. b3 {[%clk
0:00:19.3]} 30... a5 {[%clk 0:01:05]} 31. Kg2 {[%clk 0:00:19.6]} 31... Bd4
{[%clk 0:01:02.7]} 32. h4 {[%clk 0:00:19.6]} 32... Ke7 {[%clk 0:00:59.9]} 33.
Kf3 {[%clk 0:00:19.9]} 33... Ke6 {[%clk 0:00:57.4]} 34. Bd3 {[%clk 0:00:20]}
34... Ke5 {[%clk 0:00:56.7]} 35. g4 {[%clk 0:00:19.3]} 35... f6 {[%clk
0:00:56.5]} 36. Kg3 {[%clk 0:00:17.9]} 36... Bc3 {[%clk 0:00:51.8]} 37. f4+
{[%clk 0:00:17.3]} 37... Kd4 {[%clk 0:00:52.2]} 38. Bf5 {[%clk 0:00:15.9]} 38...
Be1+ {[%clk 0:00:51.4]} 39. Kh3 {[%clk 0:00:15.5]} 39... Ke3 {[%clk 0:00:50.7]}
40. g5 {[%clk 0:00:12.8]} 40... Kxf4 {[%clk 0:00:41.4]} 41. gxf6 {[%clk
0:00:13.7]} 41... gxf6 {[%clk 0:00:40.9]} 42. Be6 {[%clk 0:00:14.5]} 42... f5
{[%clk 0:00:37.2]} 43. Bf7 {[%clk 0:00:15.4]} 43... Bf2 {[%clk 0:00:34.9]} 44.
h5 {[%clk 0:00:15.5]} 44... Kg5 {[%clk 0:00:35.2]} 45. Kg2 {[%clk 0:00:16]}
45... Bb6 {[%clk 0:00:33.7]} 46. Kf3 {[%clk 0:00:16.4]} 46... Bd8 {[%clk
0:00:32.5]} 47. Ke3 {[%clk 0:00:15]} 47... f4+ {[%clk 0:00:32.1]} 48. Kf3 {[%clk
0:00:15]} 48... Bc7 {[%clk 0:00:32.5]} 49. Be8 {[%clk 0:00:15.1]} 49... Bd8
{[%clk 0:00:32.4]} 50. Ke4 {[%clk 0:00:15.6]} 50... Bc7 {[%clk 0:00:32.4]} 51.
Kd3 {[%clk 0:00:15.9]} 51... Bb6 {[%clk 0:00:30.7]} 52. Ke4 {[%clk 0:00:15.8]}
52... Bc7 {[%clk 0:00:30.5]} 53. Bf7 {[%clk 0:00:15.1]} 53... Bd8 {[%clk
0:00:30.2]} 54. h6 {[%clk 0:00:14.3]} 54... Kxh6 {[%clk 0:00:29.8]} 55. Kxf4
{[%clk 0:00:14.8]} 55... Kg7 {[%clk 0:00:29.9]} 56. Bc4 {[%clk 0:00:14.1]} 56...
Kf6 {[%clk 0:00:30.2]} 57. Ke4 {[%clk 0:00:15]} 57... Ke7 {[%clk 0:00:28.7]} 58.
Kd5 {[%clk 0:00:15.9]} 58... Kd7 {[%clk 0:00:28.2]} 59. Kc5 {[%clk 0:00:16.8]}
59... Kc7 {[%clk 0:00:26.4]} 60. Kb5 {[%clk 0:00:17.7]} 60... Kb7 {[%clk
0:00:26.3]} 61. Bf1 {[%clk 0:00:18.6]} 61... Ka7 {[%clk 0:00:26.3]} 62. Bg2
{[%clk 0:00:19.5]} 62... Bb6 {[%clk 0:00:25.9]} 63. Bf3 {[%clk 0:00:20.2]} 63...
Bd8 {[%clk 0:00:26.2]} 64. Ka4 {[%clk 0:00:21.1]} 64... Kb6 {[%clk 0:00:24.8]}
65. Be2 {[%clk 0:00:22]} 65... Bf6 {[%clk 0:00:24.3]} 66. Bd3 {[%clk 0:00:22.4]}
66... Bb2 {[%clk 0:00:24]} 67. Bf1 {[%clk 0:00:22.8]} 67... Ba3 {[%clk
0:00:24.1]} 68. Be2 {[%clk 0:00:23.1]} 68... Bc1 {[%clk 0:00:24]} 69. Bf1 {[%clk
0:00:23.4]} 69... Ba3 {[%clk 0:00:24.4]} 70. Be2 {[%clk 0:00:23.6]} 70... Bc1
{[%clk 0:00:24.8]} 71. Bf1 {[%clk 0:00:24]} 71... Ba3 {[%clk 0:00:24.5]} 1/2-1/2

[Event "*** SCC Grand Prix: Titled Tuesday Blitz"]
[Site "Chess.com"]
[Date "2020.08.04"]
[Round "4"]
[White "Martins-BR"]
[Black "amatatanav"]
[Result "1-0"]
[WhiteElo "2222"]
[BlackElo "2419"]
[TimeControl "180+1"]
[EndTime "14:24:31 PDT"]
[Termination "Martins-BR won on time"]

1. e4 {[%clk 0:03:00.9]} 1... c5 {[%clk 0:02:59.6]} 2. Nf3 {[%clk 0:02:59.5]}
2... Nc6 {[%clk 0:02:59.2]} 3. Nc3 {[%clk 0:02:58.4]} 3... g6 {[%clk 0:02:58.4]}
4. d4 {[%clk 0:02:58.1]} 4... cxd4 {[%clk 0:02:58.2]} 5. Nxd4 {[%clk 0:02:59]}
5... Bg7 {[%clk 0:02:58.8]} 6. Be3 {[%clk 0:02:58.8]} 6... Nf6 {[%clk
0:02:58.6]} 7. Nxc6 {[%clk 0:02:59.3]} 7... bxc6 {[%clk 0:02:58.4]} 8. e5 {[%clk
0:02:59.2]} 8... Ng8 {[%clk 0:02:56.5]} 9. Bd4 {[%clk 0:02:58.3]} 9... Qc7
{[%clk 0:02:50.2]} 10. f4 {[%clk 0:02:52.9]} 10... f6 {[%clk 0:02:46.2]} 11. Qe2
{[%clk 0:02:46.9]} 11... fxe5 {[%clk 0:02:45.7]} 12. Bxe5 {[%clk 0:02:45.2]}
12... Bxe5 {[%clk 0:02:43.8]} 13. Qxe5 {[%clk 0:02:41.9]} 13... Qxe5+ {[%clk
0:02:40.8]} 14. fxe5 {[%clk 0:02:42.8]} 14... d6 {[%clk 0:01:26.8]} 15. exd6
{[%clk 0:02:39.2]} 15... exd6 {[%clk 0:01:27.7]} 16. O-O-O {[%clk 0:02:38.8]}
16... d5 {[%clk 0:01:22.2]} 17. Bd3 {[%clk 0:02:28.7]} 17... Nf6 {[%clk
0:01:16.6]} 18. Rde1+ {[%clk 0:02:25.2]} 18... Kf7 {[%clk 0:01:16.3]} 19. Rhf1
{[%clk 0:02:23.8]} 19... Bd7 {[%clk 0:01:12]} 20. h3 {[%clk 0:02:20.5]} 20...
Rhe8 {[%clk 0:01:11]} 21. Na4 {[%clk 0:02:12.6]} 21... Rxe1+ {[%clk 0:01:09.2]}
22. Rxe1 {[%clk 0:02:11.7]} 22... Re8 {[%clk 0:01:08.1]} 23. Rf1 {[%clk
0:02:11.3]} 23... Ke7 {[%clk 0:00:55.7]} 24. Nc5 {[%clk 0:02:09.9]} 24... Bc8
{[%clk 0:00:55.6]} 25. b4 {[%clk 0:02:04.5]} 25... Rf8 {[%clk 0:00:50]} 26. a3
{[%clk 0:01:56.5]} 26... Kd6 {[%clk 0:00:48.4]} 27. Re1 {[%clk 0:01:41.6]} 27...
Re8 {[%clk 0:00:46.8]} 28. Rf1 {[%clk 0:01:39.6]} 28... Rf8 {[%clk 0:00:47.1]}
29. Re1 {[%clk 0:01:39.3]} 29... Re8 {[%clk 0:00:42.1]} 30. Rf1 {[%clk
0:01:38.8]} 30... Ke7 {[%clk 0:00:33.9]} 31. Re1+ {[%clk 0:01:32.2]} 31... Kf7
{[%clk 0:00:32.1]} 32. Rf1 {[%clk 0:01:31.6]} 32... Kg7 {[%clk 0:00:32.1]} 33.
Nb3 {[%clk 0:01:26.6]} 33... Nd7 {[%clk 0:00:29.3]} 34. Kd2 {[%clk 0:01:22.4]}
34... Ne5 {[%clk 0:00:29.3]} 35. Nd4 {[%clk 0:01:18.8]} 35... Bd7 {[%clk
0:00:28]} 36. Rf2 {[%clk 0:01:13.2]} 36... h6 {[%clk 0:00:27.6]} 37. Re2 {[%clk
0:01:10]} 37... Kf6 {[%clk 0:00:23.5]} 38. Rf2+ {[%clk 0:01:08.6]} 38... Kg7
{[%clk 0:00:23.8]} 39. Re2 {[%clk 0:01:08.4]} 39... Re7 {[%clk 0:00:23]} 40. Ba6
{[%clk 0:00:57.6]} 40... Be8 {[%clk 0:00:19.1]} 41. Kc3 {[%clk 0:00:39.7]} 41...
Kf8 {[%clk 0:00:18.6]} 42. Rf2+ {[%clk 0:00:35.4]} 42... Rf7 {[%clk 0:00:18.1]}
43. Re2 {[%clk 0:00:34.9]} 43... Re7 {[%clk 0:00:18.1]} 44. Rf2+ {[%clk
0:00:33.6]} 44... Kg8 {[%clk 0:00:18.3]} 45. Nb3 {[%clk 0:00:26.6]} 45... Rf7
{[%clk 0:00:11.6]} 46. Re2 {[%clk 0:00:23]} 46... Re7 {[%clk 0:00:11.9]} 47. Kd4
{[%clk 0:00:21.8]} 47... c5+ {[%clk 0:00:05.6]} 48. Nxc5 {[%clk 0:00:18.1]}
48... Nc6+ {[%clk 0:00:05.3]} 49. Kxd5 {[%clk 0:00:18]} 49... Rxe2 {[%clk
0:00:03.5]} 50. Bxe2 {[%clk 0:00:16.7]} 50... Kf7 {[%clk 0:00:04.1]} 51. Kd6
{[%clk 0:00:16]} 51... Nd4 {[%clk 0:00:03.3]} 52. Bd3 {[%clk 0:00:14.9]} 52...
Bc6 {[%clk 0:00:03.2]} 53. g4 {[%clk 0:00:13.1]} 53... Bg2 {[%clk 0:00:03.2]}
54. h4 {[%clk 0:00:12.9]} 54... Nf3 {[%clk 0:00:03.6]} 55. h5 {[%clk 0:00:11.8]}
55... gxh5 {[%clk 0:00:04.5]} 56. gxh5 {[%clk 0:00:11.5]} 56... Ne1 {[%clk
0:00:04.8]} 57. Bg6+ {[%clk 0:00:11.6]} 57... Kf6 {[%clk 0:00:04.8]} 58. Kc7
{[%clk 0:00:11.2]} 58... Bf3 {[%clk 0:00:04.3]} 59. Nd7+ {[%clk 0:00:08.7]}
59... Kg5 {[%clk 0:00:04.2]} 60. Ne5 {[%clk 0:00:08.5]} 60... Bxh5 {[%clk
0:00:04.2]} 61. Bxh5 {[%clk 0:00:08.5]} 61... Kxh5 {[%clk 0:00:05.1]} 62. b5
{[%clk 0:00:08.8]} 62... Nxc2 {[%clk 0:00:04.4]} 63. a4 {[%clk 0:00:06.6]} 63...
Kg5 {[%clk 0:00:02.9]} 64. a5 {[%clk 0:00:06.1]} 64... h5 {[%clk 0:00:03]} 65.
b6 {[%clk 0:00:05.7]} 65... axb6 {[%clk 0:00:03.4]} 66. axb6 {[%clk 0:00:05]}
66... Nb4 {[%clk 0:00:02]} 67. b7 {[%clk 0:00:04.6]} 67... Na6+ {[%clk
0:00:01.8]} 68. Kb6 {[%clk 0:00:03.9]} 68... Nb8 {[%clk 0:00:01.5]} 69. Nc6
{[%clk 0:00:03.8]} 1-0